[Event "Titled Tuesday Blitz February 07 Early 2023"]
[White "Avazkhonov, Alikhon"]
[Black "Vaglio Munoz, Jaime"]
[WhiteFideId "14208504"]
[BlackFideId "6500145"]
[WhiteElo "1538"]
[BlackElo "2174"]
[Result "1-0"]
[Round "09"]
[TimeControl "180+2"]
[Date "2023.02.07"]
[WhiteClock "0:00:47"]
[BlackClock "0:00:16"]

1. d4 {[%clk 0:03:00]}  c6 {[%clk 0:02:59]} 2. c4 {[%clk 0:02:59]}  b5 {[%clk 0:02:59]} 3. cxb5 {[%clk 0:02:56]}  cxb5 {[%clk 0:03:00]} 4. e4 {[%clk 0:02:57]}  Bb7 {[%clk 0:03:00]} 5. f3 {[%clk 0:02:54]}  a6 {[%clk 0:02:59]} 6. Nc3 {[%clk 0:02:54]}  b4 {[%clk 0:02:58]} 7. Nce2 {[%clk 0:02:44]}  e6 {[%clk 0:02:54]} 8. Ng3 {[%clk 0:02:42]}  Nf6 {[%clk 0:02:53]} 9. Bd3 {[%clk 0:02:40]}  Qb6 {[%clk 0:02:53]} 10. Be3 {[%clk 0:02:39]}  e5 {[%clk 0:02:50]} 11. N1e2 {[%clk 0:02:39]}  Nc6 {[%clk 0:02:48]} 12. Nf5 {[%clk 0:02:34]}  exd4 {[%clk 0:02:42]} 13. Nexd4 {[%clk 0:02:33]}  Nxd4 {[%clk 0:02:41]} 14. Bxd4 {[%clk 0:02:34]}  Bc5 {[%clk 0:02:40]} 15. Nxg7+ {[%clk 0:02:11]}  Kf8 {[%clk 0:02:33]} 16. Bxc5+ {[%clk 0:02:11]}  Qxc5 {[%clk 0:02:33]} 17. Nf5 {[%clk 0:02:12]}  d5 {[%clk 0:02:30]} 18. e5 {[%clk 0:02:09]}  Re8 {[%clk 0:02:28]} 19. Qe2 {[%clk 0:02:05]}  d4 {[%clk 0:02:25]} 20. f4 {[%clk 0:02:05]}  Nd5 {[%clk 0:02:19]} 21. O-O {[%clk 0:02:04]}  Rg8 {[%clk 0:02:12]} 22. Be4 {[%clk 0:01:58]}  Ne3 {[%clk 0:01:43]} 23. Bxb7 {[%clk 0:01:52]}  Nxf5 {[%clk 0:01:42]} 24. Qh5 {[%clk 0:01:44]}  Ne3 {[%clk 0:01:37]} 25. Rfc1 {[%clk 0:01:38]}  Qb6 {[%clk 0:01:32]} 26. Be4 {[%clk 0:01:30]}  d3 {[%clk 0:01:31]} 27. Rc6 {[%clk 0:01:27]}  Qd4 {[%clk 0:01:25]} 28. Qh6+ {[%clk 0:01:24]}  Rg7 {[%clk 0:01:25]} 29. Qd6+ {[%clk 0:01:25]}  Qxd6 {[%clk 0:01:22]} 30. Rxd6 {[%clk 0:01:26]}  Rc8 {[%clk 0:01:04]} 31. Rxd3 {[%clk 0:01:24]}  Ng4 {[%clk 0:00:49]} 32. Bf5 {[%clk 0:01:22]}  Rc2 {[%clk 0:00:48]} 33. Rd8+ {[%clk 0:01:19]}  Ke7 {[%clk 0:00:48]} 34. Rd7+ {[%clk 0:01:07]}  Ke8 {[%clk 0:00:47]} 35. Rad1 {[%clk 0:00:50]}  Rxg2+ {[%clk 0:00:32]} 36. Kxg2 {[%clk 0:00:49]}  Ne3+ {[%clk 0:00:28]} 37. Kf3 {[%clk 0:00:48]}  Nxf5 {[%clk 0:00:27]} 38. Rd8+ {[%clk 0:00:49]}  Ke7 {[%clk 0:00:27]} 39. R1d7+ {[%clk 0:00:48]}  Ke6 {[%clk 0:00:27]} 40. Ra7 {[%clk 0:00:48]}  Nd4+ {[%clk 0:00:19]} 41. Rxd4 {[%clk 0:00:47]}  Kf5 {[%clk 0:00:18]} 42. Rd6 {[%clk 0:00:47]}  Rg8 {[%clk 0:00:16]} 43. Rf6# {[%clk 0:00:47]} 1-0


[Site "https://www.chess.com"]

[Event "Titled Tuesday Blitz February 07 Early 2023"]
[White "Larina, Maria"]
[Black "Rottenwohrer Suarez, Juan"]
[WhiteFideId "24113182"]
[BlackFideId "32068182"]
[WhiteElo "1948"]
[BlackElo "2265"]
[Result "0-1"]
[Round "09"]
[TimeControl "180+2"]
[Date "2023.02.07"]
[WhiteClock "0:00:02"]
[BlackClock "0:01:14"]

1. e4 {[%clk 0:03:00]}  c6 {[%clk 0:02:53]} 2. d4 {[%clk 0:03:00]}  d5 {[%clk 0:02:53]} 3. f3 {[%clk 0:03:01]}  e6 {[%clk 0:02:40]} 4. Nc3 {[%clk 0:02:59]}  Bb4 {[%clk 0:02:18]} 5. Ne2 {[%clk 0:02:43]}  Ne7 {[%clk 0:02:05]} 6. a3 {[%clk 0:02:38]}  Ba5 {[%clk 0:02:05]} 7. Be3 {[%clk 0:02:32]}  O-O {[%clk 0:02:03]} 8. Qd2 {[%clk 0:02:14]}  Nd7 {[%clk 0:01:49]} 9. h4 {[%clk 0:01:39]}  e5 {[%clk 0:01:50]} 10. b4 {[%clk 0:01:01]}  Bc7 {[%clk 0:01:47]} 11. g4 {[%clk 0:00:48]}  a5 {[%clk 0:01:46]} 12. Rb1 {[%clk 0:00:39]}  axb4 {[%clk 0:01:45]} 13. axb4 {[%clk 0:00:40]}  exd4 {[%clk 0:01:46]} 14. Bxd4 {[%clk 0:00:34]}  Ne5 {[%clk 0:01:45]} 15. Bg2 {[%clk 0:00:26]}  Nc4 {[%clk 0:01:41]} 16. Qg5 {[%clk 0:00:23]}  f6 {[%clk 0:01:41]} 17. Qc1 {[%clk 0:00:16]}  Be6 {[%clk 0:01:37]} 18. h5 {[%clk 0:00:14]}  Bb6 {[%clk 0:01:28]} 19. Bxb6 {[%clk 0:00:13]}  Qxb6 {[%clk 0:01:27]} 20. h6 {[%clk 0:00:11]}  g6 {[%clk 0:01:28]} 21. g5 {[%clk 0:00:10]}  f5 {[%clk 0:01:27]} 22. exd5 {[%clk 0:00:09]}  Nxd5 {[%clk 0:01:26]} 23. Nd1 {[%clk 0:00:07]}  Rfe8 {[%clk 0:01:25]} 24. Kf1 {[%clk 0:00:07]}  Nde3+ {[%clk 0:01:19]} 25. Nxe3 {[%clk 0:00:07]}  Nxe3+ {[%clk 0:01:20]} 26. Kg1 {[%clk 0:00:06]}  Ng4+ {[%clk 0:01:15]} 27. Kf1 {[%clk 0:00:02]}  Qf2# {[%clk 0:01:14]} 0-1


[Site "https://www.chess.com"]

[Event "Titled Tuesday Blitz February 07 Early 2023"]
[White "Kornyukov, Alexey"]
[Black "Womacka, Mathias"]
[WhiteFideId "4150457"]
[BlackFideId "4611390"]
[WhiteElo "2452"]
[BlackElo "2396"]
[Result "1-0"]
[Round "09"]
[TimeControl "180+2"]
[Date "2023.02.07"]
[WhiteClock "0:00:30"]
[BlackClock "0:00:10"]

1. e4 {[%clk 0:03:00]}  c5 {[%clk 0:02:59]} 2. Nf3 {[%clk 0:03:00]}  d6 {[%clk 0:02:58]} 3. c3 {[%clk 0:02:59]}  Nf6 {[%clk 0:02:57]} 4. Be2 {[%clk 0:02:57]}  Bg4 {[%clk 0:02:56]} 5. O-O {[%clk 0:02:56]}  e6 {[%clk 0:02:55]} 6. h3 {[%clk 0:02:55]}  Bh5 {[%clk 0:02:54]} 7. e5 {[%clk 0:02:51]}  dxe5 {[%clk 0:02:53]} 8. Nxe5 {[%clk 0:02:47]}  Bxe2 {[%clk 0:02:52]} 9. Qxe2 {[%clk 0:02:46]}  Nbd7 {[%clk 0:02:53]} 10. Re1 {[%clk 0:02:29]}  Nxe5 {[%clk 0:02:50]} 11. Qxe5 {[%clk 0:02:28]}  Be7 {[%clk 0:02:49]} 12. d4 {[%clk 0:02:10]}  cxd4 {[%clk 0:02:47]} 13. cxd4 {[%clk 0:02:09]}  O-O {[%clk 0:02:46]} 14. Qg3 {[%clk 0:02:09]}  Qxd4 {[%clk 0:02:35]} 15. Nc3 {[%clk 0:02:07]}  Rfd8 {[%clk 0:02:00]} 16. Be3 {[%clk 0:01:59]}  Qb4 {[%clk 0:01:53]} 17. Ne2 {[%clk 0:01:50]}  Nd5 {[%clk 0:01:30]} 18. Bh6 {[%clk 0:01:45]}  Qxb2 {[%clk 0:01:23]} 19. Rab1 {[%clk 0:01:36]}  Qf6 {[%clk 0:01:22]} 20. Be3 {[%clk 0:01:29]}  b6 {[%clk 0:01:19]} 21. Bd4 {[%clk 0:01:26]}  Qg6 {[%clk 0:01:19]} 22. Qf3 {[%clk 0:01:19]}  Rac8 {[%clk 0:01:17]} 23. Ng3 {[%clk 0:01:11]}  Rc2 {[%clk 0:01:13]} 24. Rbc1 {[%clk 0:01:06]}  Rxa2 {[%clk 0:01:00]} 25. Rc6 {[%clk 0:01:00]}  h6 {[%clk 0:00:51]} 26. Rec1 {[%clk 0:00:57]}  Nb4 {[%clk 0:00:39]} 27. Rc7 {[%clk 0:00:54]}  Bd6 {[%clk 0:00:15]} 28. Rc8 {[%clk 0:00:50]}  Rxc8 {[%clk 0:00:14]} 29. Rxc8+ {[%clk 0:00:50]}  Kh7 {[%clk 0:00:15]} 30. Qa8 {[%clk 0:00:48]}  Qb1+ {[%clk 0:00:12]} 31. Kh2 {[%clk 0:00:46]}  Nd5 {[%clk 0:00:12]} 32. Rg8 {[%clk 0:00:38]}  f6 {[%clk 0:00:10]} 33. Qe8 {[%clk 0:00:30]} 1-0


[Site "https://www.chess.com"]

[Event "Titled Tuesday Blitz February 07 Early 2023"]
[White "Marchesich, Giovanni"]
[Black "Bozorov, Makhsum"]
[WhiteFideId "2824790"]
[BlackFideId "14201330"]
[WhiteElo "2217"]
[BlackElo "2145"]
[Result "0-1"]
[Round "09"]
[TimeControl "180+2"]
[Date "2023.02.07"]
[WhiteClock "0:00:04"]
[BlackClock "0:00:36"]

1. e4 {[%clk 0:02:56]}  e5 {[%clk 0:02:56]} 2. Nf3 {[%clk 0:02:49]}  Nc6 {[%clk 0:02:50]} 3. Nc3 {[%clk 0:02:31]}  Nf6 {[%clk 0:02:49]} 4. a3 {[%clk 0:02:32]}  d5 {[%clk 0:02:45]} 5. Bb5 {[%clk 0:02:31]}  Nxe4 {[%clk 0:02:30]} 6. Qe2 {[%clk 0:02:25]}  Qd6 {[%clk 0:02:28]} 7. Nxe4 {[%clk 0:02:24]}  dxe4 {[%clk 0:02:29]} 8. Qxe4 {[%clk 0:02:25]}  Bd7 {[%clk 0:02:29]} 9. d4 {[%clk 0:02:21]}  O-O-O {[%clk 0:02:22]} 10. dxe5 {[%clk 0:01:59]}  Nxe5 {[%clk 0:02:18]} 11. Bxd7+ {[%clk 0:01:55]}  Qxd7 {[%clk 0:01:54]} 12. O-O {[%clk 0:01:46]}  Nxf3+ {[%clk 0:01:54]} 13. Qxf3 {[%clk 0:01:47]}  Qd5 {[%clk 0:01:55]} 14. Qxd5 {[%clk 0:01:41]}  Rxd5 {[%clk 0:01:54]} 15. Be3 {[%clk 0:01:37]}  Bc5 {[%clk 0:01:46]} 16. Rfd1 {[%clk 0:01:06]}  Rxd1+ {[%clk 0:01:40]} 17. Rxd1 {[%clk 0:01:07]}  Bxe3 {[%clk 0:01:40]} 18. fxe3 {[%clk 0:01:08]}  Re8 {[%clk 0:01:40]} 19. Kf2 {[%clk 0:01:08]}  Re7 {[%clk 0:01:39]} 20. Rd4 {[%clk 0:01:07]}  b6 {[%clk 0:01:38]} 21. b4 {[%clk 0:01:04]}  h5 {[%clk 0:01:37]} 22. Kf3 {[%clk 0:00:59]}  g6 {[%clk 0:01:38]} 23. h4 {[%clk 0:00:58]}  Kb7 {[%clk 0:01:38]} 24. c4 {[%clk 0:00:54]}  c5 {[%clk 0:01:36]} 25. Rd5 {[%clk 0:00:51]}  cxb4 {[%clk 0:01:34]} 26. axb4 {[%clk 0:00:52]}  Rc7 {[%clk 0:01:33]} 27. Rd4 {[%clk 0:00:46]}  a5 {[%clk 0:01:31]} 28. bxa5 {[%clk 0:00:37]}  bxa5 {[%clk 0:01:32]} 29. Ke4 {[%clk 0:00:38]}  Kc6 {[%clk 0:01:30]} 30. Kd3 {[%clk 0:00:36]}  Rd7 {[%clk 0:01:24]} 31. Kc3 {[%clk 0:00:33]}  Rxd4 {[%clk 0:01:09]} 32. exd4 {[%clk 0:00:31]}  f6 {[%clk 0:01:10]} 33. Kb3 {[%clk 0:00:23]}  g5 {[%clk 0:01:10]} 34. Ka4 {[%clk 0:00:19]}  gxh4 {[%clk 0:01:09]} 35. Kxa5 {[%clk 0:00:20]}  f5 {[%clk 0:01:10]} 36. d5+ {[%clk 0:00:11]}  Kc5 {[%clk 0:01:08]} 37. Ka6 {[%clk 0:00:11]}  f4 {[%clk 0:01:02]} 38. Kb7 {[%clk 0:00:11]}  h3 {[%clk 0:00:53]} 39. gxh3 {[%clk 0:00:10]}  f3 {[%clk 0:00:53]} 40. Kc7 {[%clk 0:00:11]}  f2 {[%clk 0:00:53]} 41. d6 {[%clk 0:00:12]}  f1=Q {[%clk 0:00:53]} 42. d7 {[%clk 0:00:13]}  Qf4+ {[%clk 0:00:50]} 43. Kc8 {[%clk 0:00:12]}  Qf5 {[%clk 0:00:44]} 44. Kc7 {[%clk 0:00:12]}  Qe5+ {[%clk 0:00:42]} 45. Kc8 {[%clk 0:00:12]}  Qe6 {[%clk 0:00:42]} 46. Kc7 {[%clk 0:00:07]}  Qc6+ {[%clk 0:00:39]} 47. Kd8 {[%clk 0:00:06]}  Kd6 {[%clk 0:00:39]} 48. c5+ {[%clk 0:00:04]}  Ke6 {[%clk 0:00:36]} 0-1


[Site "https://www.chess.com"]

[Event "Titled Tuesday Blitz February 07 Early 2023"]
[White "Nikologorsky, Matfei"]
[Black "Theytookourjobs"]
[WhiteFideId "24102474"]
[WhiteElo "2182"]
[BlackElo "2291"]
[Result "1/2-1/2"]
[Round "09"]
[TimeControl "180+2"]
[Date "2023.02.07"]
[WhiteClock "0:00:07"]
[BlackClock "0:00:06"]

1. e4 {[%clk 0:03:00]}  e6 {[%clk 0:02:57]} 2. d4 {[%clk 0:02:59]}  d5 {[%clk 0:02:58]} 3. Nd2 {[%clk 0:02:59]}  Be7 {[%clk 0:02:58]} 4. Bd3 {[%clk 0:02:53]}  Nf6 {[%clk 0:02:58]} 5. e5 {[%clk 0:02:51]}  Nfd7 {[%clk 0:02:58]} 6. Ne2 {[%clk 0:02:51]}  c5 {[%clk 0:02:59]} 7. c3 {[%clk 0:02:51]}  Nc6 {[%clk 0:02:59]} 8. Nf3 {[%clk 0:02:51]}  cxd4 {[%clk 0:02:47]} 9. cxd4 {[%clk 0:02:51]}  Bb4+ {[%clk 0:02:47]} 10. Kf1 {[%clk 0:02:49]}  f6 {[%clk 0:02:38]} 11. exf6 {[%clk 0:02:42]}  Nxf6 {[%clk 0:02:36]} 12. Bf4 {[%clk 0:02:34]}  O-O {[%clk 0:02:34]} 13. g3 {[%clk 0:02:21]}  e5 {[%clk 0:02:21]} 14. dxe5 {[%clk 0:02:16]}  Bh3+ {[%clk 0:02:20]} 15. Kg1 {[%clk 0:02:16]}  Ng4 {[%clk 0:01:21]} 16. Bxh7+ {[%clk 0:01:46]}  Kh8 {[%clk 0:01:16]} 17. Qd3 {[%clk 0:01:26]}  Bc5 {[%clk 0:00:52]} 18. Ned4 {[%clk 0:01:02]}  Qb6 {[%clk 0:00:29]} 19. Ng5 {[%clk 0:00:43]}  Ncxe5 {[%clk 0:00:23]} 20. Qe2 {[%clk 0:00:22]}  Bxd4 {[%clk 0:00:20]} 21. Nxh3 {[%clk 0:00:21]}  Bxf2+ {[%clk 0:00:15]} 22. Nxf2 {[%clk 0:00:19]}  Kxh7 {[%clk 0:00:11]} 23. Kg2 {[%clk 0:00:16]}  Nxf2 {[%clk 0:00:10]} 24. Qxe5 {[%clk 0:00:15]}  Ne4 {[%clk 0:00:07]} 25. Qh5+ {[%clk 0:00:15]}  Kg8 {[%clk 0:00:07]} 26. Rhf1 {[%clk 0:00:15]}  Qxb2+ {[%clk 0:00:07]} 27. Kg1 {[%clk 0:00:14]}  Qd4+ {[%clk 0:00:07]} 28. Kg2 {[%clk 0:00:13]}  Qf6 {[%clk 0:00:06]} 29. Rad1 {[%clk 0:00:12]}  Qf7 {[%clk 0:00:06]} 30. Qxf7+ {[%clk 0:00:11]}  Rxf7 {[%clk 0:00:06]} 31. Rxd5 {[%clk 0:00:12]}  Nf6 {[%clk 0:00:06]} 32. Rd2 {[%clk 0:00:11]}  Rc8 {[%clk 0:00:06]} 33. Re2 {[%clk 0:00:11]}  b5 {[%clk 0:00:06]} 34. Rfe1 {[%clk 0:00:11]}  b4 {[%clk 0:00:06]} 35. Be5 {[%clk 0:00:11]}  Ng4 {[%clk 0:00:05]} 36. Bf4 {[%clk 0:00:11]}  a5 {[%clk 0:00:05]} 37. h4 {[%clk 0:00:12]}  Nf6 {[%clk 0:00:05]} 38. Re6 {[%clk 0:00:12]}  a4 {[%clk 0:00:05]} 39. Ra6 {[%clk 0:00:12]}  Rc2+ {[%clk 0:00:05]} 40. Kf3 {[%clk 0:00:11]}  Rxa2 {[%clk 0:00:06]} 41. Re4 {[%clk 0:00:11]}  Nxe4 {[%clk 0:00:05]} 42. Kxe4 {[%clk 0:00:11]}  b3 {[%clk 0:00:06]} 43. Be5 {[%clk 0:00:11]}  b2 {[%clk 0:00:06]} 44. Rb6 {[%clk 0:00:08]}  a3 {[%clk 0:00:06]} 45. g4 {[%clk 0:00:07]}  Re7 {[%clk 0:00:06]} 46. Kf5 {[%clk 0:00:06]}  Rxe5+ {[%clk 0:00:06]} 47. Kg6 {[%clk 0:00:06]}  Re8 {[%clk 0:00:04]} 48. Rb7 {[%clk 0:00:05]}  Ra1 {[%clk 0:00:04]} 49. Rxg7+ {[%clk 0:00:05]}  Kf8 {[%clk 0:00:04]} 50. Rf7+ {[%clk 0:00:05]}  Kg8 {[%clk 0:00:04]} 51. Rg7+ {[%clk 0:00:06]}  Kf8 {[%clk 0:00:05]} 52. Rf7+ {[%clk 0:00:06]}  Kg8 {[%clk 0:00:06]} 53. Rg7+ {[%clk 0:00:07]} 1/2-1/2


[Site "https://www.chess.com"]

[Event "Titled Tuesday Blitz February 07 Early 2023"]
[White "Alfaro, William"]
[Black "Bashirli, Saadat"]
[WhiteFideId "6100457"]
[BlackFideId "13429990"]
[WhiteElo "2134"]
[BlackElo "1571"]
[Result "1-0"]
[Round "09"]
[TimeControl "180+2"]
[Date "2023.02.07"]
[WhiteClock "0:01:38"]
[BlackClock "0:00:48"]

1. e4 {[%clk 0:03:00]}  e6 {[%clk 0:02:59]} 2. d4 {[%clk 0:02:59]}  d5 {[%clk 0:02:58]} 3. Nc3 {[%clk 0:03:00]}  Bb4 {[%clk 0:02:57]} 4. e5 {[%clk 0:02:59]}  c5 {[%clk 0:02:56]} 5. a3 {[%clk 0:03:00]}  Bxc3+ {[%clk 0:02:54]} 6. bxc3 {[%clk 0:03:00]}  Nc6 {[%clk 0:02:52]} 7. Qg4 {[%clk 0:02:59]}  Kf8 {[%clk 0:02:49]} 8. Nf3 {[%clk 0:02:57]}  Nge7 {[%clk 0:02:49]} 9. h4 {[%clk 0:02:54]}  Nf5 {[%clk 0:02:49]} 10. Bd3 {[%clk 0:02:47]}  Qb6 {[%clk 0:02:42]} 11. Bxf5 {[%clk 0:02:31]}  exf5 {[%clk 0:02:40]} 12. Qf4 {[%clk 0:02:31]}  Be6 {[%clk 0:02:28]} 13. O-O {[%clk 0:02:27]}  Rc8 {[%clk 0:02:24]} 14. Be3 {[%clk 0:02:21]}  cxd4 {[%clk 0:02:07]} 15. cxd4 {[%clk 0:02:17]}  Ne7 {[%clk 0:02:01]} 16. Rab1 {[%clk 0:02:15]}  Qc6 {[%clk 0:01:57]} 17. Rb3 {[%clk 0:02:05]}  Ng6 {[%clk 0:01:55]} 18. Qg3 {[%clk 0:02:05]}  b6 {[%clk 0:01:44]} 19. h5 {[%clk 0:02:03]}  Ne7 {[%clk 0:01:40]} 20. h6 {[%clk 0:02:03]}  g6 {[%clk 0:01:38]} 21. Bg5 {[%clk 0:02:01]}  Qxc2 {[%clk 0:01:34]} 22. Rbb1 {[%clk 0:01:58]}  Qe4 {[%clk 0:01:30]} 23. Rbc1 {[%clk 0:01:57]}  Nc6 {[%clk 0:01:21]} 24. Bf6 {[%clk 0:01:56]}  Rg8 {[%clk 0:01:21]} 25. Ng5 {[%clk 0:01:45]}  Qg4 {[%clk 0:01:17]} 26. Qb3 {[%clk 0:01:43]}  f4 {[%clk 0:01:00]} 27. Rxc6 {[%clk 0:01:42]}  Rxc6 {[%clk 0:00:54]} 28. Qb4+ {[%clk 0:01:41]}  Rc5 {[%clk 0:00:49]} 29. dxc5 {[%clk 0:01:39]}  f3 {[%clk 0:00:49]} 30. cxb6+ {[%clk 0:01:39]}  Qxb4 {[%clk 0:00:48]} 31. axb4 {[%clk 0:01:40]}  axb6 {[%clk 0:00:48]} 32. Ra1 {[%clk 0:01:38]} 1-0


[Site "https://www.chess.com"]

[Event "Titled Tuesday Blitz February 07 Early 2023"]
[White "Smietanska, Wiktoria"]
[Black "Carrasco Miranda, Andres"]
[WhiteFideId "21869359"]
[BlackFideId "3405990"]
[WhiteElo "1936"]
[BlackElo "2240"]
[Result "0-1"]
[Round "09"]
[TimeControl "180+2"]
[Date "2023.02.07"]
[WhiteClock "0:00:01"]
[BlackClock "0:01:40"]

1. c4 {[%clk 0:03:00]}  Nf6 {[%clk 0:02:56]} 2. Nc3 {[%clk 0:03:00]}  g6 {[%clk 0:02:55]} 3. g3 {[%clk 0:03:00]}  Bg7 {[%clk 0:02:55]} 4. Bg2 {[%clk 0:03:00]}  O-O {[%clk 0:02:55]} 5. e4 {[%clk 0:03:00]}  c5 {[%clk 0:02:49]} 6. Nge2 {[%clk 0:02:55]}  Nc6 {[%clk 0:02:49]} 7. d3 {[%clk 0:02:52]}  d6 {[%clk 0:02:50]} 8. O-O {[%clk 0:02:50]}  Rb8 {[%clk 0:02:50]} 9. h3 {[%clk 0:02:45]}  Ne8 {[%clk 0:02:50]} 10. Be3 {[%clk 0:02:44]}  a6 {[%clk 0:02:50]} 11. a4 {[%clk 0:02:43]}  Nc7 {[%clk 0:02:49]} 12. d4 {[%clk 0:02:42]}  cxd4 {[%clk 0:02:48]} 13. Nxd4 {[%clk 0:02:43]}  Ne6 {[%clk 0:02:47]} 14. Nce2 {[%clk 0:02:37]}  Ne5 {[%clk 0:02:42]} 15. b3 {[%clk 0:02:34]}  Qa5 {[%clk 0:02:33]} 16. f4 {[%clk 0:02:30]}  Nc6 {[%clk 0:02:32]} 17. g4 {[%clk 0:01:56]}  Qb4 {[%clk 0:02:25]} 18. Rb1 {[%clk 0:01:46]}  Ncxd4 {[%clk 0:02:21]} 19. Nxd4 {[%clk 0:01:44]}  Nxd4 {[%clk 0:02:21]} 20. Bxd4 {[%clk 0:01:44]}  Bxd4+ {[%clk 0:02:22]} 21. Qxd4 {[%clk 0:01:43]}  b5 {[%clk 0:02:23]} 22. axb5 {[%clk 0:01:13]}  axb5 {[%clk 0:02:24]} 23. Rbc1 {[%clk 0:00:57]}  Ba6 {[%clk 0:02:20]} 24. h4 {[%clk 0:00:45]}  Qxb3 {[%clk 0:02:18]} 25. h5 {[%clk 0:00:39]}  bxc4 {[%clk 0:02:16]} 26. Rb1 {[%clk 0:00:11]}  Qd3 {[%clk 0:01:58]} 27. Qa1 {[%clk 0:00:07]}  c3 {[%clk 0:01:52]} 28. Rfd1 {[%clk 0:00:03]}  Qe3+ {[%clk 0:01:51]} 29. Kh1 {[%clk 0:00:02]}  c2 {[%clk 0:01:51]} 30. h6 {[%clk 0:00:02]}  cxd1=Q+ {[%clk 0:01:47]} 31. Rxd1 {[%clk 0:00:02]}  e5 {[%clk 0:01:44]} 32. Qxa6 {[%clk 0:00:01]}  Qxf4 {[%clk 0:01:41]} 33. Qxd6 {[%clk 0:00:01]}  Qxh6+ {[%clk 0:01:41]} 34. Kg1 {[%clk 0:00:02]}  Qe3+ {[%clk 0:01:41]} 35. Kh2 {[%clk 0:00:01]}  Qf4+ {[%clk 0:01:41]} 36. Kg1 {[%clk 0:00:02]}  Rb2 {[%clk 0:01:41]} 37. Qd7 {[%clk 0:00:01]}  Qf2+ {[%clk 0:01:40]} 38. Kh1 {[%clk 0:00:01]}  Qxg2# {[%clk 0:01:40]} 0-1


[Site "https://www.chess.com"]

[Event "Titled Tuesday Blitz February 07 Early 2023"]
[White "Gharamian, Tigran"]
[Black "Matveeva, Olga"]
[WhiteFideId "13301527"]
[BlackFideId "24107018"]
[WhiteElo "2601"]
[BlackElo "2128"]
[Result "1-0"]
[Round "09"]
[TimeControl "180+2"]
[Date "2023.02.07"]
[WhiteClock "0:00:51"]
[BlackClock "0:01:06"]

1. d4 {[%clk 0:02:57]}  d5 {[%clk 0:02:59]} 2. Nf3 {[%clk 0:02:57]}  Nf6 {[%clk 0:02:58]} 3. e3 {[%clk 0:02:57]}  e6 {[%clk 0:02:57]} 4. Bd3 {[%clk 0:02:56]}  c5 {[%clk 0:02:56]} 5. c3 {[%clk 0:02:57]}  Nc6 {[%clk 0:02:56]} 6. Nbd2 {[%clk 0:02:57]}  Bd6 {[%clk 0:02:55]} 7. O-O {[%clk 0:02:57]}  O-O {[%clk 0:02:55]} 8. dxc5 {[%clk 0:02:56]}  Bxc5 {[%clk 0:02:54]} 9. Qe2 {[%clk 0:02:57]}  b6 {[%clk 0:02:46]} 10. e4 {[%clk 0:02:56]}  dxe4 {[%clk 0:02:40]} 11. Nxe4 {[%clk 0:02:55]}  Bb7 {[%clk 0:02:31]} 12. Nxc5 {[%clk 0:02:50]}  bxc5 {[%clk 0:02:32]} 13. Rd1 {[%clk 0:02:50]}  Qc7 {[%clk 0:02:27]} 14. Bg5 {[%clk 0:02:43]}  Rfd8 {[%clk 0:02:03]} 15. Qe3 {[%clk 0:02:22]}  Rd5 {[%clk 0:01:50]} 16. Bxf6 {[%clk 0:01:44]}  gxf6 {[%clk 0:01:51]} 17. Qh6 {[%clk 0:01:44]}  Rxd3 {[%clk 0:01:29]} 18. Rxd3 {[%clk 0:01:41]}  Rd8 {[%clk 0:01:25]} 19. Rad1 {[%clk 0:01:25]}  Qe7 {[%clk 0:01:17]} 20. Rxd8+ {[%clk 0:00:57]}  Nxd8 {[%clk 0:01:18]} 21. Qd2 {[%clk 0:00:57]}  Bd5 {[%clk 0:01:06]} 22. c4 {[%clk 0:00:51]} 1-0


[Site "https://www.chess.com"]

[Event "Titled Tuesday Blitz February 07 Early 2023"]
[White "Hartikainen, Jarmo"]
[Black "Rose, Felix"]
[WhiteFideId "503134"]
[BlackFideId "5105722"]
[WhiteElo "2108"]
[BlackElo "2091"]
[Result "0-1"]
[Round "09"]
[TimeControl "180+2"]
[Date "2023.02.07"]
[WhiteClock "0:00:01"]
[BlackClock "0:00:14"]

1. e4 {[%clk 0:03:00]}  e5 {[%clk 0:02:59]} 2. Nf3 {[%clk 0:03:00]}  Nc6 {[%clk 0:02:59]} 3. Bc4 {[%clk 0:02:59]}  Nf6 {[%clk 0:02:59]} 4. d3 {[%clk 0:02:54]}  Bc5 {[%clk 0:02:58]} 5. c3 {[%clk 0:02:53]}  a6 {[%clk 0:02:52]} 6. O-O {[%clk 0:02:52]}  Ba7 {[%clk 0:02:52]} 7. b4 {[%clk 0:02:41]}  d6 {[%clk 0:02:49]} 8. Qb3 {[%clk 0:02:32]}  O-O {[%clk 0:02:47]} 9. Bg5 {[%clk 0:02:29]}  h6 {[%clk 0:02:44]} 10. Bh4 {[%clk 0:02:28]}  g5 {[%clk 0:02:33]} 11. Bg3 {[%clk 0:02:26]}  b5 {[%clk 0:02:20]} 12. Bd5 {[%clk 0:02:22]}  Nxd5 {[%clk 0:02:18]} 13. exd5 {[%clk 0:02:06]}  Ne7 {[%clk 0:02:17]} 14. d4 {[%clk 0:01:40]}  e4 {[%clk 0:02:15]} 15. Nfd2 {[%clk 0:01:35]}  f5 {[%clk 0:02:13]} 16. f4 {[%clk 0:01:31]}  Ng6 {[%clk 0:01:16]} 17. a4 {[%clk 0:01:23]}  Qf6 {[%clk 0:01:00]} 18. axb5 {[%clk 0:01:18]}  axb5 {[%clk 0:00:59]} 19. Na3 {[%clk 0:01:18]}  gxf4 {[%clk 0:00:53]} 20. Bxf4 {[%clk 0:01:17]}  Nxf4 {[%clk 0:00:52]} 21. Rxf4 {[%clk 0:01:17]}  Bxd4+ {[%clk 0:00:53]} 22. Kh1 {[%clk 0:00:37]}  Bxc3 {[%clk 0:00:29]} 23. Nxe4 {[%clk 0:00:37]}  Qe5 {[%clk 0:00:30]} 24. Qxc3 {[%clk 0:00:28]}  Qxf4 {[%clk 0:00:18]} 25. Nf6+ {[%clk 0:00:28]}  Rxf6 {[%clk 0:00:13]} 26. Qxf6 {[%clk 0:00:25]}  Rxa3 {[%clk 0:00:12]} 27. Qd8+ {[%clk 0:00:18]}  Kf7 {[%clk 0:00:07]} 28. Qxc7+ {[%clk 0:00:18]}  Kg6 {[%clk 0:00:07]} 29. Rc1 {[%clk 0:00:13]}  Re3 {[%clk 0:00:03]} 30. h3 {[%clk 0:00:11]}  Re8 {[%clk 0:00:02]} 31. Qc3 {[%clk 0:00:07]}  Qe5 {[%clk 0:00:03]} 32. Qd3 {[%clk 0:00:06]}  Qe4 {[%clk 0:00:02]} 33. Qxe4 {[%clk 0:00:04]}  fxe4 {[%clk 0:00:03]} 34. Re1 {[%clk 0:00:04]}  e3 {[%clk 0:00:03]} 35. Kg1 {[%clk 0:00:04]}  Kf5 {[%clk 0:00:04]} 36. g4+ {[%clk 0:00:05]}  Ke4 {[%clk 0:00:04]} 37. Kg2 {[%clk 0:00:05]}  Rf8 {[%clk 0:00:05]} 38. Kg3 {[%clk 0:00:02]}  Rf3+ {[%clk 0:00:05]} 39. Kg2 {[%clk 0:00:02]}  Rf2+ {[%clk 0:00:05]} 40. Kg3 {[%clk 0:00:02]}  Rb2 {[%clk 0:00:06]} 41. h4 {[%clk 0:00:02]}  Bb7 {[%clk 0:00:07]} 42. g5 {[%clk 0:00:03]}  hxg5 {[%clk 0:00:08]} 43. hxg5 {[%clk 0:00:03]}  Bxd5 {[%clk 0:00:08]} 44. g6 {[%clk 0:00:03]}  Kd3 {[%clk 0:00:09]} 45. g7 {[%clk 0:00:03]}  Rg2+ {[%clk 0:00:09]} 46. Kf4 {[%clk 0:00:03]}  Rxg7 {[%clk 0:00:10]} 47. Rxe3+ {[%clk 0:00:03]}  Kd4 {[%clk 0:00:11]} 48. Re8 {[%clk 0:00:03]}  Kc4 {[%clk 0:00:11]} 49. Ke3 {[%clk 0:00:03]}  Kxb4 {[%clk 0:00:11]} 50. Kd4 {[%clk 0:00:03]}  Bc4 {[%clk 0:00:12]} 51. Rb8 {[%clk 0:00:02]}  Rg4+ {[%clk 0:00:12]} 52. Ke3 {[%clk 0:00:03]}  d5 {[%clk 0:00:12]} 53. Kd2 {[%clk 0:00:03]}  d4 {[%clk 0:00:12]} 54. Rb7 {[%clk 0:00:02]}  Rg2+ {[%clk 0:00:13]} 55. Kd1 {[%clk 0:00:01]}  Kc3 {[%clk 0:00:13]} 56. Rc7 {[%clk 0:00:01]}  Rg1# {[%clk 0:00:14]} 0-1


[Site "https://www.chess.com"]